fUSD/lending_fUSD_20241003
["ID","MTS","AMOUNT","RATE_DAILY","PERIOD"]
[339798322,1727987588651,-1249.01,0.00038356,120]
[339798323,1727987588660,-500.0,0.00038356,120]
[339798324,1727987588669,-1225.26,0.00038356,120]
[339798325,1727987588679,-817.82,0.00038356,120]
[339798326,1727987588689,-911.79,0.00038356,120]
[339798327,1727987588699,-1292.49,0.00038356,7]
[339798328,1727987588709,-517.59,0.00038356,120]
[339798329,1727987588718,-762.72,0.00038356,120]
[339798330,1727987588728,-1184.87,0.00038356,120]
[339798331,1727987588738,-1701.57,0.00038356,120]
[339798332,1727987588747,-714.2,0.00038356,120]
[339798333,1727987588757,-1396.71,0.00038356,120]
[339798334,1727987588767,-1713.42,0.00038356,120]
[339798335,1727987588776,-676.51,0.00038356,120]
[339798336,1727987588786,-543.4,0.00038356,120]
[339798337,1727987588796,-615.69,0.00038356,120]
[339798338,1727987588805,-675.57,0.00038356,120]
[339798339,1727987588815,-822.0,0.00038356,120]
[339798340,1727987588824,-781.4,0.00038356,120]
[339798341,1727987588834,-747.69,0.00038356,120]
[339798342,1727987588843,-500.0,0.00038356,120]
[339798343,1727987588852,-911.34,0.00038356,120]
[339798344,1727987588862,-617.77,0.00038356,120]
[339798345,1727987588872,-500.0,0.00038356,120]
[339798346,1727987588885,-1099.61,0.00038356,120]
[339798347,1727987588895,-605.0,0.00038356,120]
[339798348,1727987588904,-1245.73,0.00038356,120]
[339798349,1727987588914,-614.52,0.00038356,120]
[339798350,1727987588924,-570.35,0.00038356,120]
[339798351,1727987588933,-806.75,0.00038356,120]
[339798352,1727987588943,-761.4,0.00038356,120]
[339798353,1727987588954,-500.0,0.00038356,120]
[339798354,1727987588964,-1016.56,0.00038356,120]
[339798355,1727987588974,-908.19,0.00038356,120]
[339798356,1727987588985,-650.02,0.00038356,120]
[339798357,1727987588995,-2907.54,0.00038356,120]
[339798358,1727987589006,-1955.84,0.00038356,120]
[339798359,1727987589016,-666.23,0.00038356,120]
[339798360,1727987589025,-1476.07,0.00038356,120]
[339798361,1727987589035,-200.0,0.00038356,7]
[339798362,1727987589044,-664.13,0.00038356,120]
[339798363,1727987589054,-580.92,0.00038356,120]
[339798364,1727987589064,-559.23,0.00038356,120]
[339798365,1727987589074,-619.0,0.00038356,120]
[339798366,1727987589083,-682.12,0.00038356,120]
[339798367,1727987589093,-662.07,0.00038356,120]
[339798368,1727987589103,-1017.64,0.00038356,120]
[339798369,1727987589112,-1843.32,0.00038356,120]
[339798370,1727987589122,-903.96,0.00038356,120]
[339798371,1727987589131,-929.85,0.00038356,120]
[339798372,1727987589141,-1244.9,0.00038356,120]
[339798373,1727987589151,-2059.5,0.00038356,120]
[339798374,1727987589161,-1208.85,0.00038356,120]
[339798375,1727987589170,-1392.18,0.00038356,120]
[339798376,1727987589180,-1754.22,0.00038356,120]
[339798377,1727987589190,-838.34,0.00038356,120]
[339798378,1727987589199,-3096.26,0.00038356,120]
[339798379,1727987589209,-767.37,0.00038356,120]
[339798380,1727987589219,-1262.93,0.00038356,120]
[339798381,1727987589228,-546.33,0.00038356,120]
[339798382,1727987589238,-1915.72,0.00038356,120]
[339798383,1727987589247,-900.49,0.00038356,120]
[339798384,1727987589256,-871.88,0.00038356,120]
[339798385,1727987589266,-542.05,0.00038356,120]
[339798386,1727987589276,-1246.58,0.00038356,120]
[339798387,1727987589285,-755.2,0.00038356,120]
[339798388,1727987589295,-515.39,0.00038356,120]
[339798389,1727987589304,-1449.61,0.00038356,120]
[339798390,1727987589314,-615.97,0.00038356,120]
[339798391,1727987589324,-290.40781382,0.00038356,120]
[339798392,1727987589333,-828.98,0.00038356,120]
[339798393,1727987589343,-522.48,0.00038356,120]
[339798394,1727987589352,-769.93,0.00038356,120]
[339798395,1727987589361,-1535.42,0.00038356,120]
[339798396,1727987589371,-692.01,0.00038356,120]
[339798397,1727987589380,-617.57,0.00038356,120]
[339798398,1727987589389,-1322.47,0.00038356,120]
[339798399,1727987589398,-685.28,0.00038356,120]
[339798400,1727987589408,-3041.51,0.00038356,120]
[339798401,1727987589417,-1088.33,0.00038356,120]
[339798402,1727987589427,-678.3,0.00038356,120]
[339798403,1727987589437,-809.97,0.00038356,120]
[339798404,1727987589446,-617.35,0.00038356,120]
[339798405,1727987589456,-500.0,0.00038356,120]
[339798406,1727987589467,-504.49,0.00038356,120]
[339798407,1727987589476,-2582.55,0.00038356,14]
[339798408,1727987589486,-821.22,0.00038356,120]
[339798409,1727987589496,-1192.92,0.00038356,120]
[339798410,1727987589507,-2036.76,0.00038356,2]
[339798411,1727987589516,-752.83,0.00038356,120]
[339798412,1727987589525,-696.33,0.00038356,120]
[339798413,1727987589534,-1822.29,0.00038356,120]
[339798414,1727987589544,-500.0,0.00038356,120]
[339798415,1727987589553,-1595.23,0.00038356,120]
[339798416,1727987589563,-1676.96,0.00038356,120]
[339798417,1727987589572,-500.0,0.00038356,120]
[339798418,1727987589581,-1430.65,0.00038356,120]
[339798419,1727987589591,-1022.58,0.00038356,120]
[339798420,1727987589600,-572.51,0.00038356,120]
[339798421,1727987589610,-743.36,0.00038356,120]
[339798422,1727987589620,-534.34,0.00038356,120]
[339798423,1727987589631,-722.75,0.00038356,120]
[339798424,1727987589643,-2933.87,0.00038356,120]
[339798425,1727987589654,-891.75,0.00038356,120]
[339798426,1727987589666,-734.12,0.00038356,120]
[339798427,1727987589677,-830.44,0.00038356,120]
[339798428,1727987589689,-2736.92,0.00038356,120]
[339798429,1727987589699,-1668.6,0.00038356,120]
[339798430,1727987589709,-2840.63,0.00038356,120]
[339798431,1727987589719,-963.2,0.00038356,120]
[339798432,1727987589728,-3064.64,0.00038356,120]
[339798433,1727987589738,-895.53,0.00038356,120]
[339798434,1727987589849,-603.25,0.00038356,120]
[339798435,1727987589858,-893.66,0.00038356,120]
[339798436,1727987589868,-1265.22,0.00038356,120]
[339798437,1727987589880,-648.93,0.00038356,120]
[339798438,1727987589890,-702.69,0.00038356,120]
[339798439,1727987589899,-912.75,0.00038356,120]
[339798440,1727987589908,-625.95,0.00038356,120]
[339798441,1727987589918,-500.0,0.00038356,120]
[339798442,1727987589927,-589.87,0.00038356,120]
[339798443,1727987589936,-904.15,0.00038356,120]
[339798444,1727987589945,-809.38,0.00038356,120]
[339798445,1727987589957,-2849.48,0.00038356,120]
[339798446,1727987589967,-1583.67,0.00038356,120]
[339798447,1727987589976,-1559.78,0.00038356,120]
[339798448,1727987589985,-526.9,0.00038356,120]
[339798449,1727987589995,-887.97,0.00038356,120]
[339798450,1727987590004,-522.66,0.00038356,120]
[339798451,1727987590013,-608.69,0.00038356,120]
[339798452,1727987590022,-1196.23,0.00038356,120]
[339798453,1727987590031,-1435.23,0.00038356,120]
[339798454,1727987590040,-1891.17,0.00038356,120]
[339798455,1727987590050,-734.62,0.00038356,120]
[339798456,1727987590061,-1907.44,0.00038356,120]
[339798457,1727987590072,-170.59095383,0.00038356,5]
[339798458,1727987590081,-954.92,0.00038356,30]
[339798459,1727987590091,-760.37,0.00038356,120]
[339798460,1727987590100,-1267.83,0.00038356,120]
[339798461,1727987590109,-617.77619182,0.00038356,120]
[339798462,1727987590119,-3152.28,0.00038356,120]
[339798463,1727987590129,-4273.85,0.00038356,2]
[339798464,1727987590138,-692.31,0.00038356,120]
[339798465,1727987590148,-2240.67,0.00038356,120]
[339798466,1727987590157,-566.42,0.00038356,120]
[339798467,1727987590167,-1375.15,0.00038356,120]
[339798468,1727987590176,-1352.94,0.00038356,120]
[339798469,1727987590185,-2143.59,0.00038356,120]
[339798470,1727987590194,-2552.25,0.00038356,120]
[339798471,1727987590204,-807.0,0.00038356,120]
[339798472,1727987590213,-500.0,0.00038356,120]
[339798473,1727987590222,-1929.43,0.00038356,120]
[339798474,1727987590231,-500.0,0.00038356,120]
[339798475,1727987590241,-687.7,0.00038356,120]
[339798476,1727987590250,-685.66,0.00038356,120]
[339798477,1727987590260,-176.46988858,0.00038356,120]
[339798478,1727987590269,-1124.73,0.00038356,120]
[339798479,1727987590279,-1267.04,0.00038356,120]
[339798480,1727987590287,-1073.96,0.00038356,120]
[339798481,1727987590297,-515.88,0.00038356,120]
[339798482,1727987590306,-924.47,0.00038356,120]
[339798483,1727987590315,-687.49,0.00038356,120]
[339798484,1727987590325,-3529.62,0.00038356,120]
[339798485,1727987590334,-2122.92,0.00038356,120]
[339798486,1727987590343,-583.93,0.00038356,120]
[339798487,1727987590352,-1443.8,0.00038356,120]
[339798488,1727987590362,-598.1,0.00038356,120]
[339798489,1727987590371,-1130.17,0.00038356,120]
[339798490,1727987590381,-500.0,0.00038356,120]
[339798491,1727987590392,-512.25,0.00038356,120]
[339798492,1727987590402,-739.66,0.00038356,120]
[339798493,1727987590412,-2221.7,0.00038356,120]
[339798494,1727987590423,-753.47,0.00038356,120]
[339798495,1727987590433,-878.47,0.00038356,120]
[339798496,1727987590444,-2105.23,0.00038356,120]
[339798497,1727987590455,-1101.24,0.00038356,120]
[339798498,1727987590466,-880.23,0.00038356,120]
[339798499,1727987590478,-594.49,0.00038356,120]
[339798500,1727987590488,-500.0,0.00038356,120]
[339798501,1727987590499,-1746.33,0.00038356,120]
[339798502,1727987590509,-983.59,0.00038356,120]
[339798503,1727987590518,-1535.26,0.00038356,120]
[339798504,1727987590527,-3156.06,0.00038356,120]
[339798505,1727987590536,-889.14,0.00038356,120]
[339798506,1727987590545,-754.45,0.00038356,120]
[339798507,1727987590554,-640.32,0.00038356,120]
[339798508,1727987590563,-2375.19,0.00038356,120]
[339798509,1727987590572,-580.84,0.00038356,120]
[339798510,1727987590581,-2171.15,0.00038356,120]
[339798511,1727987590591,-652.15,0.00038356,120]
[339798512,1727987590600,-970.9,0.00038356,120]
[339798513,1727987590609,-576.98,0.00038356,120]
[339798514,1727987590618,-2322.76,0.00038356,120]
[339798515,1727987590628,-2446.1,0.00038356,120]
[339798516,1727987590637,-500.0,0.00038356,120]
[339798517,1727987590647,-569.39,0.00038356,120]
[339798518,1727987590656,-865.83,0.00038356,120]
[339798519,1727987590665,-559.14,0.00038356,120]
[339798520,1727987590675,-526.15,0.00038356,120]
[339798521,1727987590684,-500.0,0.00038356,120]
[339798522,1727987590694,-1022.47,0.00038356,120]
[339798523,1727987590703,-1404.02,0.00038356,120]
[339798524,1727987590712,-500.0,0.00038356,120]
[339798525,1727987590722,-641.91,0.00038356,120]
[339798526,1727987590731,-926.29,0.00038356,120]
[339798527,1727987590740,-796.9,0.00038356,120]
[339798528,1727987590749,-2021.14,0.00038356,120]
[339798529,1727987590758,-3420.05,0.00038356,120]
[339798530,1727987590767,-585.28,0.00038356,120]
[339798531,1727987590777,-500.0,0.00038356,120]
[339798532,1727987590785,-920.88,0.00038356,120]
[339798533,1727987590794,-1372.22,0.00038356,120]
[339798534,1727987590804,-501.73,0.00038356,120]
[339798535,1727987590813,-1014.09,0.00038356,120]
[339798536,1727987590822,-2342.53,0.00038356,120]
[339798537,1727987590831,-849.67,0.00038356,120]
[339798538,1727987590840,-503.33,0.00038356,120]
[339798539,1727987590850,-619.95,0.00038356,120]
[339798540,1727987590859,-650.32,0.00038356,120]
[339798541,1727987590868,-4513.04,0.00038356,120]
[339798542,1727987590880,-697.86,0.00038356,120]
[339798543,1727987590890,-1906.45,0.00038356,120]
[339798544,1727987590899,-500.0,0.00038356,120]
[339798545,1727987590908,-999.0,0.00038356,120]
[339798546,1727987590919,-1342.8,0.00038356,120]
[339798547,1727987590928,-4469.7,0.00038356,120]
[339798548,1727987590937,-2820.31,0.00038356,120]
[339798549,1727987590948,-1714.59,0.00038356,120]
[339798550,1727987590957,-1567.97,0.00038356,120]
[339798551,1727987590966,-858.96,0.00038356,120]
[339798552,1727987590975,-1071.24,0.00038356,120]
[339798553,1727987590984,-1083.26,0.00038356,120]
[339798554,1727987590993,-1923.73,0.00038356,120]
[339798555,1727987591003,-3953.73,0.00038356,120]
[339798556,1727987591012,-646.54,0.00038356,120]
[339798557,1727987591021,-1541.86,0.00038356,120]
[339798558,1727987591030,-2326.51,0.00038356,120]
[339798559,1727987591039,-825.35,0.00038356,120]
[339798560,1727987591049,-1401.87,0.00038356,120]
[339798561,1727987591058,-8162.3,0.00038356,120]
[339798562,1727987591067,-2202.86,0.00038356,3]
[339798563,1727987591077,-1721.6,0.00038356,120]
[339798564,1727987591086,-1824.09,0.00038356,120]
[339798565,1727987591096,-3694.14,0.00038356,120]
[339798566,1727987591105,-648.29,0.00038356,120]
[339798567,1727987591115,-797.25,0.00038356,120]
[339798568,1727987591124,-1962.84,0.00038356,120]
[339798569,1727987591133,-770.99,0.00038356,120]
[339798570,1727987591143,-1812.58,0.00038356,120]
[339798571,1727987591152,-1106.97,0.00038356,120]
[339798572,1727987591161,-995.24,0.00038356,120]
[339798573,1727987591170,-1533.42,0.00038356,120]
[339798574,1727987591179,-1245.45,0.00038356,120]
[339798575,1727987591189,-2708.28,0.00038356,120]
[339798576,1727987591199,-919.76,0.00038356,120]
[339798577,1727987591208,-1028.68,0.00038356,120]
[339798578,1727987591217,-2392.87,0.00038356,120]
[339798579,1727987591227,-1219.91,0.00038356,120]
[339798580,1727987591235,-1971.05,0.00038356,120]
[339798581,1727987591244,-967.14,0.00038356,120]
[339798582,1727987591254,-11039.47,0.00038356,120]
[339798583,1727987591263,-1835.01,0.00038356,120]
[339798584,1727987591273,-647.95,0.00038356,120]
[339798585,1727987591282,-1066.51,0.00038356,120]
[339798586,1727987591291,-2065.61,0.00038356,120]
[339798587,1727987591301,-2041.33,0.00038356,120]
[339798588,1727987591310,-701.71,0.00038356,120]
[339798589,1727987591319,-512.38,0.00038356,120]
[339798590,1727987591329,-527.76,0.00038356,120]
[339798591,1727987591338,-527.0,0.00038356,120]
[339798592,1727987591347,-1302.4,0.00038356,120]
[339798593,1727987591357,-968.42,0.00038356,120]
[339798594,1727987591366,-1041.18,0.00038356,120]
[339798595,1727987591375,-1510.82,0.00038356,120]
[339798596,1727987591384,-2058.43,0.00038356,120]
[339798597,1727987591393,-1635.85,0.00038356,120]
[339798598,1727987591401,-2566.99,0.00038356,120]
[339798599,1727987591410,-500.52,0.00038356,120]
[339798600,1727987591419,-1123.06,0.00038356,120]
[339798601,1727987591428,-1766.39,0.00038356,120]
[339798602,1727987591437,-1421.18,0.00038356,120]
[339798603,1727987591446,-2301.76,0.00038356,120]
[339798604,1727987591455,-1093.77,0.00038356,120]
[339798605,1727987591465,-2041.08,0.00038356,120]
[339798606,1727987591474,-1056.72,0.00038356,120]
[339798607,1727987591483,-4824.18,0.00038356,120]
[339798608,1727987591492,-575.99,0.00038356,120]
[339798609,1727987591503,-2539.88,0.00038356,120]
[339798610,1727987591512,-1031.81,0.00038356,120]
[339798611,1727987591521,-1058.32,0.00038356,120]
[339798612,1727987591530,-500.0,0.00038356,120]
[339798613,1727987591539,-2770.27,0.00038356,120]
[339798614,1727987591548,-2126.28,0.00038356,120]
[339798615,1727987591557,-3109.58,0.00038356,120]
[339798616,1727987591566,-1989.39,0.00038356,120]
[339798617,1727987591574,-2838.83,0.00038356,120]
[339798618,1727987591583,-2454.73,0.00038356,120]
[339798619,1727987591592,-2489.9,0.00038356,120]
[339798620,1727987591600,-1548.63,0.00038356,120]
[339798621,1727987591610,-1539.86,0.00038356,120]
[339798622,1727987591619,-1135.51,0.00038356,120]
[339798623,1727987591629,-751.5,0.00038356,120]
[339798624,1727987591638,-26307.75,0.00038356,120]
[339798625,1727987591647,-1359.32,0.00038356,120]
[339798626,1727987591656,-920.13,0.00038356,120]
[339798627,1727987591665,-2373.28,0.00038356,120]
[339798628,1727987591674,-723.9,0.00038356,120]
[339798629,1727987591682,-500.0,0.00038356,120]
[339798630,1727987591691,-683.05,0.00038356,120]
[339798631,1727987591700,-1328.33,0.00038356,120]
[339798632,1727987591709,-1718.99,0.00038356,120]
[339798633,1727987591718,-500.0,0.00038356,120]
[339798634,1727987591727,-2515.59,0.00038356,120]
[339798635,1727987591736,-953.41,0.00038356,120]
[339798636,1727987591745,-876.22,0.00038356,120]
[339798637,1727987591758,-2264.01,0.00038356,120]
[339798638,1727987591768,-1281.35,0.00038356,120]
[339798639,1727987591777,-2588.02,0.00038356,120]
[339798640,1727987591785,-1057.1,0.00038356,120]
[339798641,1727987591795,-1543.66,0.00038356,120]
[339798642,1727987591804,-567.28,0.00038356,120]
[339798643,1727987591813,-622.45,0.00038356,120]
[339798644,1727987591822,-1173.73,0.00038356,120]
[339798645,1727987591832,-831.03,0.00038356,120]
[339798646,1727987591841,-574.46,0.00038356,120]
[339798647,1727987591851,-605.72,0.00038356,120]
[339798648,1727987591860,-656.14,0.00038356,24]
[339798649,1727987591869,-999.57,0.00038356,120]
[339798650,1727987591881,-1059.55,0.00038356,120]
[339798651,1727987591889,-1114.36,0.00038356,120]
[339798652,1727987591898,-2557.98,0.00038356,120]
[339798653,1727987591907,-2619.08,0.00038356,120]
[339798654,1727987591917,-985.85,0.00038356,120]
[339798655,1727987591928,-2196.8,0.00038356,120]
[339798656,1727987591938,-1368.57,0.00038356,120]
[339798657,1727987591947,-534.46,0.00038356,120]
[339798658,1727987591960,-623.45,0.00038356,120]
[339798659,1727987591970,-1760.97,0.00038356,120]
[339798660,1727987591979,-4833.89,0.00038356,120]
[339798661,1727987591989,-1036.03,0.00038356,120]
[339798662,1727987591998,-613.95,0.00038356,120]
[339798663,1727987592016,-1295.57,0.00038356,120]
[339798664,1727987592025,-1100.59,0.00038356,120]
[339798665,1727987592033,-1437.23,0.00038356,120]
[339798666,1727987592043,-581.64,0.00038356,120]
[339798667,1727987592052,-500.0,0.00038356,120]
[339798668,1727987592061,-1584.05,0.00038356,120]
[339798669,1727987592071,-552.68334921,0.00038356,120]
[339798670,1727987592080,-1739.53,0.00038356,120]
[339798671,1727987592089,-780.59,0.00038356,120]
[339798672,1727987592098,-567.89,0.00038356,120]
[339798673,1727987592107,-1002.66,0.00038356,120]
[339798674,1727987592116,-504.47,0.00038356,120]
[339798675,1727987592125,-10179.37,0.00038356,120]
[339798676,1727987592135,-859.91,0.00038356,120]
[339798677,1727987592144,-8270.07,0.00038356,21]
[339798678,1727987592154,-669.41,0.00038356,120]
[339798679,1727987592163,-4586.08,0.00038356,120]
[339798680,1727987592172,-2304.02,0.00038356,120]
[339798681,1727987592182,-631.12,0.00038356,120]
[339798682,1727987592192,-1138.44,0.00038356,120]
[339798683,1727987592201,-811.67,0.00038356,120]
[339798684,1727987592210,-10000.0,0.000384,120]
[339798685,1727987592219,-10000.0,0.000384,120]
[339798686,1727987592228,-5180.38172952,0.000384,120]
[339798687,1727987592237,-182.77353797,0.000384,33]
[339798688,1727987592246,-282.92675,0.000384,120]
[339798689,1727987592262,-151.100317,0.00038448,119]
[339798690,1727987592271,-47505.4922389,0.00038484,2]
[339798691,1727987592280,-1000000.0,0.000385,120]
[339798692,1727987592288,-151.100218,0.00038548,120]
[339798693,1727987592298,-2013.42383797,0.000386,60]
[339798694,1727987592307,-500.0,0.0003863,7]
[339798695,1727987592316,-1830.04,0.0003863,120]
[339798696,1727987592326,-1465.14,0.0003863,120]
[339798697,1727987592335,-731.74,0.0003863,120]
[339798698,1727987592344,-1375.31,0.0003863,120]
[339798699,1727987592353,-668.57,0.0003863,120]
[339798700,1727987592363,-500.0,0.0003863,120]
[339798701,1727987592372,-1062.68,0.0003863,120]
[339798702,1727987592381,-1108.65,0.0003863,120]
[339798703,1727987592390,-1917.75,0.0003863,120]
[339798704,1727987592399,-1239.66,0.0003863,120]
[339798705,1727987592409,-749.5,0.0003863,120]
[339798706,1727987592418,-1219.3,0.0003863,120]
[339798707,1727987592427,-1706.35,0.0003863,120]
[339798708,1727987592436,-1816.28,0.0003863,120]
[339798709,1727987592446,-608.59,0.0003863,120]
[339798710,1727987592454,-688.2,0.0003863,120]
[339798711,1727987592463,-818.32,0.0003863,120]
[339798712,1727987592473,-2173.75,0.0003863,120]
[339798713,1727987592481,-721.06,0.0003863,120]
[339798714,1727987592491,-2649.5,0.0003863,120]
[339798715,1727987592500,-500.0,0.0003863,120]
[339798716,1727987592510,-612.77028444,0.0003863,120]
[339798717,1727987592520,-952.32,0.0003863,120]
[339798718,1727987592528,-508.75,0.0003863,120]
[339798719,1727987592537,-2782.16,0.0003863,120]
[339798720,1727987592547,-500.0,0.0003863,120]
[339798721,1727987592555,-799.66,0.0003863,120]
[339798722,1727987592565,-528.54,0.0003863,120]
[339798723,1727987592574,-1116.48,0.0003863,120]
[339798724,1727987592583,-153.04225292,0.0003863,120]
[339798725,1727987592592,-667.6,0.0003863,120]
[339798726,1727987592601,-516.86,0.0003863,120]
[339798727,1727987592610,-577.36,0.0003863,120]
[339798728,1727987592618,-2275.0,0.0003863,120]
[339798729,1727987592627,-1181.76,0.0003863,120]
[339798730,1727987592636,-1059.01,0.0003863,120]
[339798731,1727987592647,-260.67787849,0.0003863,120]
[339798732,1727987592656,-678.32,0.0003863,120]
[339798733,1727987592665,-908.96,0.0003863,120]
[339798734,1727987592674,-806.47,0.0003863,120]
[339798735,1727987592682,-1850.2,0.0003863,120]
[339798736,1727987592691,-532.65,0.0003863,120]
[339798737,1727987592701,-951.98,0.0003863,120]
[339798738,1727987592710,-3113.1,0.0003863,120]
[339798739,1727987592719,-952.18,0.0003863,120]
[339798740,1727987592728,-1578.27,0.0003863,120]
[339798741,1727987592737,-799.85,0.0003863,120]
[339798742,1727987592747,-708.6,0.0003863,120]
[339798743,1727987592758,-584.82,0.0003863,120]
[339798744,1727987592766,-560.83,0.0003863,120]
[339798745,1727987592776,-610.78,0.0003863,120]
[339798746,1727987592785,-1249.01,0.0003863,120]
[339798747,1727987592794,-1225.26,0.0003863,120]
[339798748,1727987592803,-817.82,0.0003863,120]
[339798749,1727987592812,-911.79,0.0003863,120]
[339798750,1727987592821,-517.59,0.0003863,120]
[339798751,1727987592830,-1292.49,0.0003863,7]
[339798752,1727987592839,-762.72,0.0003863,120]
[339798753,1727987592848,-1184.87,0.0003863,120]
[339798754,1727987592857,-1701.57,0.0003863,120]
[339798755,1727987592865,-714.2,0.0003863,120]
[339798756,1727987592877,-1396.71,0.0003863,120]
[339798757,1727987592888,-676.51,0.0003863,120]
[339798758,1727987592897,-1713.42,0.0003863,120]
[339798759,1727987592906,-543.4,0.0003863,120]
[339798760,1727987592915,-615.69,0.0003863,120]
[339798761,1727987592924,-675.57,0.0003863,120]
[339798762,1727987592933,-822.0,0.0003863,120]
[339798763,1727987592943,-781.4,0.0003863,120]
[339798764,1727987592952,-747.69,0.0003863,120]
[339798765,1727987592963,-500.0,0.0003863,120]
[339798766,1727987592973,-911.34,0.0003863,120]
[339798767,1727987592983,-617.77,0.0003863,120]
[339798768,1727987592993,-500.0,0.0003863,120]
[339798769,1727987593004,-1099.61,0.0003863,120]
[339798770,1727987593014,-605.0,0.0003863,120]
[339798771,1727987593023,-1245.73,0.0003863,120]
[339798772,1727987593032,-614.52,0.0003863,120]
[339798773,1727987593042,-570.35,0.0003863,120]
[339798774,1727987593051,-806.75,0.0003863,120]
[339798775,1727987593060,-761.4,0.0003863,120]
[339798776,1727987593070,-393.85502848,0.0003863,120]
[339798777,1727987593080,-1016.56,0.0003863,120]
[339798778,1727987593089,-908.19,0.0003863,120]
[339798779,1727987593099,-650.02,0.0003863,120]
[339798780,1727987593108,-2907.54,0.0003863,120]
[339798781,1727987593118,-1955.84,0.0003863,120]
[339798782,1727987593127,-666.23,0.0003863,120]
[339798783,1727987593137,-1476.07,0.0003863,120]
[339798784,1727987593147,-200.0,0.0003863,7]
[339798785,1727987593156,-664.13,0.0003863,120]
[339798786,1727987593166,-580.92,0.0003863,120]
[339798787,1727987593175,-559.23,0.0003863,120]
[339798788,1727987593185,-619.0,0.0003863,120]
[339798789,1727987593194,-682.12,0.0003863,120]
[339798790,1727987593204,-662.07,0.0003863,120]
[339798791,1727987593213,-1017.64,0.0003863,120]
[339798792,1727987593223,-1843.32,0.0003863,120]
[339798793,1727987593232,-903.96,0.0003863,120]
[339798794,1727987593241,-929.85,0.0003863,120]
[339798795,1727987593251,-1244.9,0.0003863,120]
[339798796,1727987593261,-2059.5,0.0003863,120]
[339798797,1727987593270,-1208.85,0.0003863,120]
[339798798,1727987593279,-1392.18,0.0003863,120]
[339798799,1727987593289,-1754.22,0.0003863,120]
[339798800,1727987593298,-838.34,0.0003863,120]
[339798801,1727987593308,-3096.26,0.0003863,120]
[339798802,1727987593317,-767.37,0.0003863,120]
[339798803,1727987593327,-1262.93,0.0003863,120]
[339798804,1727987593336,-546.33,0.0003863,120]
[339798805,1727987593345,-1915.72,0.0003863,120]
[339798806,1727987593354,-900.49,0.0003863,120]
[339798807,1727987593364,-871.88,0.0003863,120]
[339798808,1727987593373,-542.05,0.0003863,120]
[339798809,1727987593383,-1246.58,0.0003863,120]
[339798810,1727987593392,-755.2,0.0003863,120]
[339798811,1727987593401,-515.39,0.0003863,120]
[339798812,1727987593411,-1449.61,0.0003863,120]
[339798813,1727987593420,-615.97,0.0003863,120]
[339798814,1727987593430,-828.98,0.0003863,120]
[339798815,1727987593439,-522.48,0.0003863,120]
[339798816,1727987593449,-769.93,0.0003863,120]
[339798817,1727987593458,-1535.42,0.0003863,120]
[339798818,1727987593467,-692.01,0.0003863,120]
[339798819,1727987593477,-1322.47,0.0003863,120]
[339798820,1727987593486,-617.57,0.0003863,120]
[339798821,1727987593495,-685.28,0.0003863,120]